fUSD/lending_fUSD_20251113
["ID","MTS","AMOUNT","RATE_DAILY","PERIOD"]
[393795909,1762997440205,-500.0,0.00037865,60]
[393795910,1762997440214,-471.0,0.00037865,60]
[393795911,1762997440224,-650.0,0.00037865,60]
[393795913,1762997440234,-500.0,0.00037865,48]
[393795915,1762997440244,-200.0,0.00037865,60]
[393795917,1762997440253,-150.0,0.00037865,60]
[393795919,1762997440262,-407.36782787,0.00037865,60]
[393795921,1762997440271,-150.0,0.00037865,120]
[393795923,1762997440280,-500.0,0.00037865,60]
[393795925,1762997440290,-500.0,0.00037865,60]
[393795927,1762997440299,-154.88521083,0.00037865,60]
[393795929,1762997440309,-500.0,0.00037865,60]
[393795930,1762997440318,-500.0,0.00037865,60]
[393795931,1762997440328,-500.0,0.00037865,60]
[393795932,1762997440337,-500.0,0.00037882,60]
[393795933,1762997440347,-500.0,0.00037882,21]
[393795934,1762997440356,-150.0,0.00037882,60]
[393795935,1762997440366,-9111.20164403,0.00037892,4]
[393795936,1762997440375,-500.0,0.00037892,60]
[393795937,1762997440385,-471.0,0.00037892,60]
[393795938,1762997440395,-650.0,0.00037892,60]
[393795939,1762997440404,-500.0,0.00037892,48]
[393795940,1762997440418,-150.0,0.00037892,60]
[393795941,1762997440428,-150.0,0.00037892,120]
[393795942,1762997440437,-500.0,0.00037892,60]
[393795943,1762997440446,-268.76517648,0.00037892,60]
[393795944,1762997440457,-500.0,0.00037892,60]
[393795945,1762997440467,-292.38871467,0.00037892,60]
[393795946,1762997440476,-500.0,0.00037892,60]
[393795947,1762997440485,-500.0,0.000379,13]
[393795948,1762997440498,-7830.9969901,0.00037902,2]
[393795949,1762997440507,-500.0,0.0003791,60]
[393795950,1762997440516,-500.0,0.0003791,21]
[393795951,1762997440525,-168.34038152,0.0003791,60]
[393795952,1762997440535,-500.0,0.0003792,60]
[393795953,1762997440544,-471.0,0.0003792,60]
[393795954,1762997440552,-650.0,0.0003792,60]
[393795955,1762997440562,-500.0,0.0003792,48]
[393795956,1762997440572,-150.0,0.0003792,60]
[393795957,1762997440581,-192.62111701,0.0003792,120]
[393795958,1762997440590,-500.0,0.0003792,60]
[393795959,1762997440600,-500.0,0.0003792,60]
[393795960,1762997440609,-217.97267621,0.0003792,60]
[393795961,1762997440619,-150.0,0.00037932,2]
[393795962,1762997440628,-500.0,0.00037937,60]
[393795963,1762997440638,-500.0,0.00037937,21]
[393795964,1762997440647,-360.80073268,0.00037947,60]
[393795965,1762997440656,-471.0,0.00037947,60]
[393795966,1762997440666,-650.0,0.00037947,60]
[393795967,1762997440675,-500.0,0.00037947,48]
[393795968,1762997440684,-214.39022714,0.00037947,60]
[393795969,1762997440694,-500.0,0.00037947,60]
[393795970,1762997440703,-500.0,0.00037947,60]
[393795971,1762997440715,-500.0,0.00037964,60]
[393795972,1762997440724,-454.18590591,0.00037964,21]
[393795973,1762997440734,-500.0,0.00037973,5]
[393795974,1762997440743,-500.0,0.00037973,5]
[393795975,1762997440753,-500.0,0.00037973,5]
[393795976,1762997440762,-471.0,0.00037974,60]
[393795977,1762997440771,-650.0,0.00037974,60]
[393795978,1762997440780,-500.0,0.00037974,48]
[393795979,1762997440791,-500.0,0.00037974,60]
[393795980,1762997440800,-538.04356076,0.00037974,60]
[393795981,1762997440811,-109334.419728,0.0003799,4]
[393795982,1762997440820,-151.02,0.0003799,2]
[393795983,1762997440830,-684.42988792,0.0003799,2]
[393795984,1762997440839,-500.0,0.00037992,60]
[393795985,1762997440849,-157446.79114713,0.00038,2]
[393795986,1762997440858,-76497.02472379,0.00038,2]
[393795987,1762997440868,-502.02778526,0.00038,120]
[393795988,1762997440877,-356.94,0.00038,30]
[393795989,1762997440887,-244.73,0.00038002,2]
[393795990,1762997440896,-471.0,0.00038002,60]
[393795991,1762997440911,-650.0,0.00038002,60]
[393795992,1762997440922,-500.0,0.00038002,48]
[393795993,1762997440932,-500.0,0.00038002,60]
[393795994,1762997440942,-179.85,0.00038007,2]
[393795995,1762997440951,-2007.77,0.00038013,2]
[393795996,1762997440960,-500.0,0.00038019,60]
[393795997,1762997440970,-407.3,0.00038029,120]
[393795998,1762997440979,-471.0,0.00038029,60]
[393795999,1762997440988,-650.0,0.00038029,60]
[393796000,1762997440997,-500.0,0.00038029,48]
[393796001,1762997441007,-500.0,0.00038029,60]
[393796002,1762997441016,-500.0,0.00038047,60]
[393796003,1762997441026,-471.0,0.00038057,60]
[393796004,1762997441035,-650.0,0.00038057,60]
[393796005,1762997441044,-364.4678135,0.00038057,48]
[393796006,1762997441054,-500.0,0.00038057,60]
[393796007,1762997441066,-5000.0,0.00038069,2]
[393796008,1762997441075,-500.0,0.00038074,60]
[393796009,1762997441084,-471.0,0.00038084,60]
[393796010,1762997441093,-650.0,0.00038084,60]
[393796011,1762997441102,-500.0,0.00038084,60]
[393796012,1762997441111,-244.07926411,0.000381,33]
[393796013,1762997441121,-500.0,0.00038101,60]
[393796014,1762997441130,-471.0,0.00038111,60]
[393796015,1762997441139,-650.0,0.00038111,60]
[393796016,1762997441149,-500.0,0.00038111,60]
[393796017,1762997441158,-500.0,0.00038129,60]
[393796018,1762997441167,-471.0,0.00038139,60]
[393796019,1762997441176,-650.0,0.00038139,60]
[393796020,1762997441186,-500.0,0.00038139,60]
[393796021,1762997441195,-500.0,0.00038156,60]
[393796022,1762997441204,-152.0,0.00038158,4]
[393796023,1762997441214,-471.0,0.00038166,60]
[393796024,1762997441229,-650.0,0.00038166,60]
[393796025,1762997441239,-500.0,0.00038166,60]
[393796026,1762997441248,-500.0,0.00038184,60]
[393796027,1762997441258,-471.0,0.00038194,60]
[393796028,1762997441268,-650.0,0.00038194,60]
[393796029,1762997441277,-500.0,0.00038194,60]
[393796030,1762997441287,-7830.99699003,0.00038194,2]
[393796031,1762997441297,-500.0,0.00038211,60]
[393796032,1762997441307,-4692.0,0.00038214,2]
[393796033,1762997441318,-471.0,0.00038221,60]
[393796034,1762997441328,-650.0,0.00038221,60]
[393796035,1762997441337,-500.0,0.00038221,60]
[393796036,1762997441347,-2144.0,0.00038224,2]
[393796037,1762997441356,-575.0,0.00038224,2]
[393796038,1762997441366,-557.699031,0.00038238,60]
[393796039,1762997441375,-471.0,0.00038248,60]
[393796040,1762997441384,-650.0,0.00038248,60]
[393796041,1762997441393,-339.1746121,0.00038248,60]
[393796042,1762997441403,-478.56668374,0.00038251,2]
[393796043,1762997441413,-471.0,0.00038276,60]
[393796045,1762997441431,-650.0,0.00038276,60]
[393796046,1762997441441,-150.0,0.00038283,7]
[393796047,1762997441451,-471.0,0.00038303,60]
[393796048,1762997441460,-650.0,0.00038303,60]
[393796049,1762997441470,-967.976,0.00038307,51]
[393796050,1762997441480,-151.0,0.00038327,2]
[393796051,1762997441490,-151.0,0.00038327,2]
[393796052,1762997441502,-151.0,0.00038327,2]
[393796053,1762997441511,-151.0,0.00038327,2]
[393796054,1762997441521,-151.0,0.00038327,2]
[393796055,1762997441531,-151.0,0.00038327,2]
[393796056,1762997441540,-151.0,0.00038327,2]
[393796057,1762997441550,-151.0,0.00038327,2]
[393796058,1762997441559,-151.0,0.00038327,2]
[393796059,1762997441569,-151.0,0.00038327,2]
[393796060,1762997441578,-151.0,0.00038327,2]
[393796061,1762997441588,-151.0,0.00038327,2]
[393796062,1762997441597,-151.0,0.00038327,2]
[393796063,1762997441607,-151.0,0.00038327,2]
[393796064,1762997441620,-151.0,0.00038327,2]
[393796065,1762997441630,-151.0,0.00038327,2]
[393796066,1762997441640,-151.0,0.00038327,2]
[393796067,1762997441649,-151.0,0.00038327,2]
[393796068,1762997441658,-151.0,0.00038327,2]
[393796069,1762997441667,-151.0,0.00038327,2]
[393796070,1762997441677,-151.0,0.00038327,2]
[393796071,1762997441686,-151.0,0.00038327,2]
[393796072,1762997441696,-151.0,0.00038327,2]
[393796073,1762997441705,-151.0,0.00038327,2]
[393796075,1762997441715,-151.0,0.00038327,2]
[393796076,1762997441725,-151.0,0.00038327,2]
[393796077,1762997441734,-151.0,0.00038327,2]
[393796078,1762997441743,-471.0,0.00038331,60]
[393796079,1762997441753,-650.0,0.00038331,60]
[393796080,1762997441762,-500.0,0.00038348,5]
[393796081,1762997441772,-490.92540579,0.00038356,15]
[393796082,1762997441782,-471.0,0.00038358,60]
[393796083,1762997441791,-650.0,0.00038358,60]
[393796084,1762997441950,-471.0,0.00038385,60]
[393796085,1762997441965,-650.0,0.00038385,60]
[393796086,1762997441976,-500.0,0.00038387,30]
[393796087,1762997441985,-471.0,0.00038413,60]
[393796088,1762997441995,-650.0,0.00038413,60]
[393796089,1762997442004,-4692.0,0.00038438,7]
[393796090,1762997442013,-481.16789508,0.0003844,60]
[393796091,1762997442023,-654.17828899,0.0003844,60]
[393796092,1762997442032,-4692.0,0.00038447,120]
[393796093,1762997442041,-478.56668374,0.00038447,120]
[393796094,1762997442050,-7830.99699003,0.00038486,2]
[393796095,1762997442061,-336.41765726,0.00038521,5]
[393796096,1762997442070,-1000.0,0.00038521,5]
[393796097,1762997442080,-287.26530748,0.00038567,30]
[393796098,1762997442091,-3792.0,0.00038574,120]
[393796099,1762997442102,-515.0,0.00038653,2]
[393796100,1762997442113,-217.33,0.00038658,2]
[393796101,1762997442123,-10062.01,0.00038678,2]
[393796102,1762997442134,-2195.3,0.00038678,30]
[393796103,1762997442144,-6064.69,0.00038678,2]
[393796104,1762997442153,-714.0,0.00038706,2]
[393796105,1762997442166,-215.46514677,0.00038728,2]
[393796106,1762997442175,-7830.99699003,0.00038777,2]
[393796107,1762997442185,-300.0,0.00038802,2]
[393796108,1762997442194,-935.98556187,0.00038806,2]
[393796109,1762997442204,-150.0,0.00038863,7]
[393796110,1762997442214,-6319.25,0.00038863,2]
[393796111,1762997442223,-356.94,0.000389,30]
[393796112,1762997442233,-300.0,0.00038993,2]
[393796113,1762997442242,-854.0,0.00039,7]
[393796114,1762997442252,-300.0,0.00039041,2]
[393796115,1762997442262,-927.0,0.00039067,120]
[393796116,1762997442271,-517.85474684,0.00039068,5]
[393796117,1762997442280,-7830.99699003,0.00039069,2]
[393796118,1762997442289,-217.33,0.00039077,2]
[393796119,1762997442299,-300.0,0.00039079,2]
[393796120,1762997442308,-215.46514677,0.00039153,2]
[393796121,1762997442319,-500.0,0.0003917,60]
[393796122,1762997442328,-300.0,0.00039235,2]
[393796123,1762997442339,-300.0,0.00039248,2]
[393796124,1762997442348,-221.18233607,0.0003929,2]
[393796125,1762997442357,-300.0,0.00039325,2]
[393796126,1762997442367,-515.0,0.00039343,120]
[393796127,1762997442377,-300.0,0.00039347,2]
[393796128,1762997442386,-7830.99699003,0.00039361,2]
[393796129,1762997442396,-215.46514677,0.00039367,2]
[393796130,1762997442405,-300.0,0.00039411,2]
[393796131,1762997442417,-1656.66263009,0.00039429,2]
[393796132,1762997442428,-150.0,0.00039443,7]
[393796133,1762997442438,-620.2742432,0.000395,120]
[393796134,1762997442447,-300.0,0.00039512,2]
[393796135,1762997442459,-300.0,0.00039537,2]
[393796136,1762997442468,-300.0,0.0003956,2]
[393796137,1762997442477,-300.0,0.00039568,2]
[393796138,1762997442486,-300.0,0.00039582,2]
[393796140,1762997442498,-300.0,0.00039584,2]
[393796142,1762997442507,-300.0,0.00039593,2]
[393796143,1762997442517,-500.0,0.000396,14]
[393796145,1762997442525,-300.0,0.00039601,2]
[393796147,1762997442535,-300.0,0.00039617,2]
[393796150,1762997442551,-217.33,0.00039626,2]
[393796151,1762997442564,-300.0,0.0003964,2]
[393796152,1762997442573,-300.0,0.0003964,2]
[393796153,1762997442582,-7830.99699003,0.00039653,2]
[393796154,1762997442592,-215.46514677,0.00039698,2]
[393796155,1762997442601,-1100.0,0.000397,14]
[393796156,1762997442613,-405.46,0.000397,120]
[393796157,1762997442624,-300.0,0.0003971,2]
[393796158,1762997442633,-300.0,0.00039716,2]
[393796159,1762997442642,-500.0,0.00039718,7]
[393796160,1762997442652,-500.0,0.00039718,7]
[393796161,1762997442661,-356.33,0.00039718,7]
[393796162,1762997442673,-500.0,0.00039718,7]
[393796163,1762997442682,-292.98,0.00039718,7]
[393796164,1762997442692,-300.0,0.00039719,2]
[393796165,1762997442702,-300.0,0.0003972,2]
[393796166,1762997442711,-300.0,0.00039769,2]
[393796167,1762997442721,-300.0,0.00039777,2]
[393796168,1762997442731,-300.0,0.00039781,2]
[393796169,1762997442741,-300.0,0.00039786,2]
[393796170,1762997442750,-1700.0,0.000398,14]
[393796171,1762997442760,-800.0,0.000398,14]
[393796172,1762997442769,-215.46514681,0.000398,2]
[393796173,1762997442779,-300.0,0.00039807,2]
[393796174,1762997442788,-300.0,0.00039811,2]
[393796175,1762997442798,-300.0,0.00039824,2]
[393796176,1762997442807,-300.0,0.00039873,2]
[393796177,1762997442817,-300.0,0.00039882,2]
[393796178,1762997442827,-2200.0,0.000399,14]
[393796179,1762997442836,-1100.0,0.000399,14]
[393796180,1762997442845,-356.94,0.000399,30]
[393796181,1762997442854,-300.0,0.00039937,2]
[393796182,1762997442862,-300.0,0.00039937,2]
[393796183,1762997442871,-7830.99699003,0.00039944,15]
[393796184,1762997442879,-14494.92372038,0.00039963,15]
[393796185,1762997442887,-300.0,0.00039976,2]
[393796186,1762997442895,-350.77235249,0.0003999,120]
[393796188,1762997442905,-32297.88953077,0.0003999,120]
[393796189,1762997442913,-300.0,0.00039996,2]
[393796190,1762997442921,-433.84845336,0.00039999,31]
[393796191,1762997442929,-172.70325771,0.00039999,31]
[393796192,1762997442938,-189.42814456,0.00039999,31]
[393796193,1762997442946,-267.80800514,0.00039999,31]
[393796194,1762997442957,-2031.0,0.0004,2]
[393796195,1762997442965,-2031.0,0.0004,2]
[393796196,1762997442972,-1803.0,0.0004,2]
[393796197,1762997442981,-1031.73658,0.0004,2]
[393796198,1762997442990,-5030.08145853,0.0004,60]
[393796199,1762997443000,-540.41,0.0004,120]
[393796200,1762997443009,-218.07,0.0004,120]
[393796201,1762997443020,-578.73,0.0004,120]
[393796202,1762997443029,-189.35,0.0004,120]
[393796203,1762997443039,-150.0,0.00040023,7]
[393796204,1762997443050,-14494.92372032,0.00040026,15]
[393796205,1762997443060,-300.0,0.00040028,2]
[393796206,1762997443070,-194.85240459,0.00040052,84]
[393796207,1762997443079,-2500.0,0.00040053,2]
[393796208,1762997443089,-515.0,0.00040056,2]
[393796209,1762997443099,-1000.0,0.00040062,2]
[393796210,1762997443120,-31353.1339,0.00040062,2]
[393796212,1762997443139,-714.0,0.0004008,2]
[393796214,1762997443151,-14494.92372032,0.00040089,15]
[393796215,1762997443161,-300.0,0.00040092,2]
[393796216,1762997443170,-2000.0,0.00040099,30]
[393796217,1762997443179,-300.0,0.00040122,2]
[393796218,1762997443189,-289.78640605,0.00040144,14]
[393796219,1762997443198,-14494.92372032,0.00040151,15]
[393796220,1762997443207,-151.0,0.00040159,14]
[393796221,1762997443217,-249219.68309261,0.00040162,120]
[393796222,1762997443226,-500.0,0.00040162,30]
[393796223,1762997443236,-420000.0,0.00040163,2]
[393796224,1762997443245,-168.7372605,0.0004017,14]
[393796225,1762997443255,-500.0,0.00040173,5]
[393796226,1762997443264,-500.0,0.00040173,5]
[393796227,1762997443273,-500.0,0.00040173,5]
[393796228,1762997443284,-500.0,0.00040173,5]
[393796229,1762997443293,-1000.0,0.00040173,5]
[393796230,1762997443303,-188.90160009,0.00040173,2]
[393796231,1762997443313,-300.0,0.00040175,2]
[393796232,1762997443323,-300.0,0.00040178,2]
[393796233,1762997443332,-300.0,0.00040197,2]
[393796234,1762997443342,-5000.0,0.000402,120]
[393796235,1762997443351,-532.33,0.000402,14]
[393796236,1762997443361,-500.0,0.00040213,2]
[393796237,1762997443371,-14494.92372032,0.00040214,15]
[393796238,1762997443380,-1284.527217,0.00040217,2]
[393796239,1762997443390,-300.0,0.00040221,2]
[393796240,1762997443399,-300.0,0.0004023,2]
[393796241,1762997443409,-7830.99699003,0.00040236,15]
[393796242,1762997443421,-500.0,0.00040252,20]
[393796243,1762997443430,-500.0,0.00040252,7]
[393796244,1762997443439,-646.01,0.00040252,20]
[393796245,1762997443449,-500.0,0.00040252,20]
[393796246,1762997443460,-500.0,0.00040252,20]
[393796247,1762997443469,-276.19511427,0.00040253,2]
[393796248,1762997443478,-500.0,0.00040262,20]
[393796249,1762997443487,-500.0,0.00040262,7]
[393796250,1762997443498,-646.01,0.00040262,20]
[393796251,1762997443507,-512.96823338,0.00040262,20]
[393796252,1762997443516,-478.56668374,0.00040263,30]
[393796253,1762997443525,-9949.13442043,0.00040263,30]
[393796254,1762997443535,-174.04178479,0.0004027,14]
[393796255,1762997443544,-500.0,0.00040272,20]
[393796256,1762997443554,-500.0,0.00040272,20]
[393796257,1762997443563,-500.0,0.00040272,20]
[393796258,1762997443571,-500.0,0.00040272,7]
[393796259,1762997443579,-500.0,0.00040272,7]
[393796260,1762997443588,-500.0,0.00040272,7]
[393796261,1762997443596,-646.01,0.00040272,20]
[393796262,1762997443605,-646.01,0.00040272,20]
[393796263,1762997443614,-646.01,0.00040272,20]
[393796264,1762997443622,-999.0,0.00040272,120]
[393796265,1762997443630,-555.54989948,0.00040273,5]
[393796266,1762997443639,-494.76897243,0.00040273,5]
[393796267,1762997443648,-205.15543338,0.00040273,20]
[393796268,1762997443657,-297.72739799,0.00040273,20]
[393796269,1762997443665,-427.33581225,0.00040273,20]
[393796270,1762997443673,-228.81684979,0.00040273,20]
[393796271,1762997443681,-410.44197954,0.00040273,20]
[393796272,1762997443689,-200.0,0.00040273,20]
[393796273,1762997443696,-254.00577411,0.00040273,20]
[393796274,1762997443705,-500.0,0.00040273,20]
[393796275,1762997443714,-500.0,0.00040273,20]
[393796276,1762997443721,-500.0,0.00040273,20]
[393796277,1762997443729,-500.0,0.00040273,20]
[393796278,1762997443738,-500.0,0.00040273,20]
[393796279,1762997443747,-432.40917561,0.00040273,20]
[393796280,1762997443756,-580.60263711,0.00040273,20]
[393796281,1762997443765,-500.0,0.00040273,20]
[393796282,1762997443775,-500.0,0.00040273,20]
[393796283,1762997443784,-500.0,0.00040273,20]
[393796284,1762997443794,-500.0,0.00040273,20]
[393796285,1762997443803,-500.0,0.00040273,20]
[393796286,1762997443812,-500.0,0.00040273,20]
[393796287,1762997443822,-500.0,0.00040273,20]
[393796288,1762997443832,-500.0,0.00040273,20]
[393796289,1762997443842,-500.0,0.00040273,20]
[393796290,1762997443851,-500.0,0.00040273,20]
[393796291,1762997443861,-523.14596889,0.00040273,20]
[393796292,1762997443871,-200.0794546,0.00040273,20]
[393796293,1762997443880,-1779.43,0.00040273,20]
[393796294,1762997443889,-1779.43,0.00040273,20]
[393796295,1762997443898,-1779.43,0.00040273,20]
[393796296,1762997443908,-1779.43,0.00040273,20]
[393796297,1762997443918,-1779.43,0.00040273,20]
[393796298,1762997443927,-1418.25,0.00040273,20]
[393796299,1762997443937,-1418.25,0.00040273,20]
[393796300,1762997443946,-1418.25,0.00040273,20]
[393796301,1762997443956,-1418.25,0.00040273,20]
[393796302,1762997443965,-1418.25,0.00040273,20]
[393796303,1762997443975,-305.5142853,0.00040273,20]
[393796304,1762997443984,-325.13703902,0.00040273,20]
[393796305,1762997443993,-500.0,0.00040273,20]
[393796306,1762997444003,-622.85063701,0.00040273,20]
[393796307,1762997444012,-616.13287521,0.00040273,20]
[393796308,1762997444022,-500.0,0.00040273,20]
[393796309,1762997444031,-500.0,0.00040273,20]
[393796310,1762997444040,-500.0,0.00040273,20]
[393796311,1762997444049,-500.0,0.00040273,20]
[393796312,1762997444058,-500.0,0.00040273,20]
[393796313,1762997444068,-500.0,0.00040273,20]
[393796314,1762997444078,-500.0,0.00040273,20]
[393796315,1762997444087,-500.0,0.00040273,20]
[393796316,1762997444097,-500.0,0.00040273,20]
[393796317,1762997444106,-500.0,0.00040273,20]
[393796318,1762997444115,-500.0,0.00040273,20]
[393796319,1762997444125,-500.0,0.00040273,20]
[393796320,1762997444135,-500.0,0.00040273,20]
[393796321,1762997444144,-500.0,0.00040273,20]
[393796322,1762997444153,-619.70034461,0.00040273,20]
[393796323,1762997444163,-500.0,0.00040273,20]
[393796324,1762997444304,-500.0,0.00040273,20]
[393796325,1762997444314,-293.57921472,0.00040273,20]
[393796326,1762997444323,-308.7258332,0.00040273,20]
[393796327,1762997444332,-500.0,0.00040273,20]
[393796328,1762997444342,-500.0,0.00040273,20]
[393796329,1762997444351,-500.0,0.00040273,20]
[393796330,1762997444360,-500.0,0.00040273,20]
[393796331,1762997444370,-500.0,0.00040273,20]
[393796332,1762997444380,-500.0,0.00040273,20]
[393796333,1762997444389,-500.0,0.00040273,20]
[393796334,1762997444400,-500.0,0.00040273,20]
[393796335,1762997444410,-500.0,0.00040273,20]
[393796336,1762997444424,-355.31274548,0.00040273,20]
[393796337,1762997444433,-293.44281723,0.00040273,20]
[393796338,1762997444442,-244.88895758,0.00040273,20]
[393796339,1762997444451,-500.0,0.00040273,20]
[393796340,1762997444462,-500.0,0.00040273,20]
[393796341,1762997444471,-500.0,0.00040273,20]
[393796342,1762997444481,-500.0,0.00040273,20]
[393796343,1762997444491,-500.0,0.00040273,20]
[393796344,1762997444502,-500.0,0.00040273,20]
[393796345,1762997444511,-500.0,0.00040273,20]
[393796346,1762997444521,-500.0,0.00040273,20]
[393796347,1762997444531,-500.0,0.00040273,20]
[393796348,1762997444540,-560.08201469,0.00040273,20]
[393796349,1762997444550,-509.67054633,0.00040273,20]
[393796350,1762997444559,-500.0,0.00040273,20]
[393796351,1762997444568,-500.0,0.00040273,7]
[393796352,1762997444578,-500.0,0.00040273,7]
[393796353,1762997444588,-500.0,0.00040273,20]
[393796354,1762997444598,-500.0,0.00040273,7]
[393796355,1762997444607,-500.0,0.00040273,20]
[393796356,1762997444616,-500.0,0.00040273,7]
[393796357,1762997444625,-500.0,0.00040273,20]
[393796358,1762997444634,-500.0,0.00040273,7]
[393796359,1762997444644,-500.0,0.00040273,20]
[393796360,1762997444653,-500.0,0.00040273,20]
[393796361,1762997444662,-500.0,0.00040273,20]
[393796362,1762997444671,-500.0,0.00040273,20]
[393796363,1762997444681,-500.0,0.00040273,20]
[393796364,1762997444690,-500.0,0.00040273,20]
[393796365,1762997444699,-500.0,0.00040273,20]
[393796366,1762997444709,-500.0,0.00040273,20]
[393796367,1762997444718,-595.28877167,0.00040273,20]
[393796368,1762997444727,-500.0,0.00040273,20]
[393796369,1762997444737,-500.0,0.00040273,20]
[393796370,1762997444746,-441.28927123,0.00040273,20]
[393796371,1762997444755,-511.73719918,0.00040273,20]
[393796372,1762997444765,-500.0,0.00040273,20]
[393796373,1762997444774,-640.87650637,0.00040273,20]
[393796374,1762997444783,-500.0,0.00040273,20]
[393796375,1762997444792,-500.0,0.00040273,20]
[393796376,1762997444802,-500.0,0.00040273,20]
[393796377,1762997444811,-277.41979462,0.00040273,20]
[393796378,1762997444820,-500.0,0.00040273,20]
[393796379,1762997444830,-227.38144594,0.00040273,20]
[393796380,1762997444839,-500.0,0.00040273,20]
[393796381,1762997444849,-220.38386166,0.00040273,20]
[393796382,1762997444858,-549.78955559,0.00040273,20]
[393796383,1762997444867,-500.0,0.00040273,20]
[393796384,1762997444876,-340.81044993,0.00040273,20]
[393796385,1762997444885,-185.1864851,0.00040273,20]
[393796386,1762997444895,-500.0,0.00040273,20]
[393796387,1762997444904,-500.0,0.00040273,20]
[393796388,1762997444914,-500.0,0.00040273,20]
[393796389,1762997444923,-502.23687508,0.00040273,20]
[393796390,1762997444932,-554.13761551,0.00040273,20]
[393796391,1762997444942,-500.0,0.00040273,20]
[393796392,1762997444951,-238.30311742,0.00040273,20]
[393796393,1762997444960,-500.0,0.00040273,20]
[393796394,1762997444969,-193.77764351,0.00040273,20]
[393796395,1762997444979,-500.0,0.00040273,20]
[393796396,1762997444988,-500.0,0.00040273,20]
[393796397,1762997444997,-500.0,0.00040273,20]
[393796398,1762997445007,-509.49602343,0.00040273,20]
[393796399,1762997445017,-500.0,0.00040273,20]
[393796400,1762997445026,-500.0,0.00040273,20]
[393796401,1762997445035,-500.0,0.00040273,20]
[393796402,1762997445045,-545.93248651,0.00040273,20]
[393796403,1762997445054,-500.0,0.00040273,20]
[393796404,1762997445063,-500.0,0.00040273,20]
[393796405,1762997445072,-500.0,0.00040273,20]
[393796406,1762997445082,-335.18731789,0.00040273,20]
[393796407,1762997445091,-500.0,0.00040273,20]
[393796408,1762997445100,-500.0,0.00040273,20]
[393796409,1762997445109,-500.0,0.00040273,20]
[393796410,1762997445118,-500.0,0.00040273,20]
[393796411,1762997445128,-500.0,0.00040273,20]
[393796412,1762997445137,-500.0,0.00040273,20]
[393796413,1762997445146,-500.0,0.00040273,20]
[393796414,1762997445155,-500.0,0.00040273,20]
[393796415,1762997445165,-500.0,0.00040273,20]
[393796416,1762997445174,-449.02229213,0.00040273,20]
[393796417,1762997445184,-500.0,0.00040273,20]
[393796418,1762997445192,-411.84700943,0.00040273,20]
[393796419,1762997445202,-500.0,0.00040273,20]
[393796420,1762997445211,-500.0,0.00040273,20]
[393796421,1762997445220,-500.0,0.00040273,20]
[393796422,1762997445230,-500.0,0.00040273,20]
[393796423,1762997445239,-500.0,0.00040273,20]
[393796424,1762997445248,-500.0,0.00040273,20]
[393796425,1762997445257,-500.0,0.00040273,20]
[393796426,1762997445266,-500.0,0.00040273,20]
[393796427,1762997445276,-579.93152678,0.00040273,20]
[393796428,1762997445286,-645.35802261,0.00040273,20]